lending/lending_fUSD_20251124
["ID","MTS","AMOUNT","RATE_DAILY","PERIOD"]
[394838014,1764004319420,-500.0,0.0003726,8]
[394838015,1764004319430,-500.0,0.0003726,8]
[394838016,1764004319440,-500.0,0.0003726,8]
[394838017,1764004319450,-500.0,0.0003726,8]
[394838018,1764004319459,-5746.28,0.0003726,8]
[394838019,1764004319468,-156.09,0.000373,14]
[394838020,1764004319478,-184.5,0.000375,8]
[394838021,1764004319487,-464.25480925,0.00037534,8]
[394838022,1764004319496,-500.0,0.00037534,8]
[394838023,1764004319506,-500.0,0.00037534,8]
[394838024,1764004319515,-500.0,0.00037534,8]
[394838025,1764004319525,-500.0,0.00037534,8]
[394838026,1764004319538,-505.89,0.00037534,8]
[394838027,1764004319547,-500.0,0.00037534,8]
[394838028,1764004319557,-303.625554,0.00037534,8]
[394838029,1764004319566,-500.0,0.00037534,8]
[394838030,1764004319575,-572.85,0.00037534,8]
[394838031,1764004319584,-500.0,0.00037534,8]
[394838032,1764004319594,-514.36239974,0.00037534,8]
[394838033,1764004319603,-244.74,0.00037534,8]
[394838034,1764004319614,-591.91658775,0.00037534,8]
[394838035,1764004319624,-500.0,0.00037534,8]
[394838036,1764004319633,-500.0,0.00037534,8]
[394838037,1764004319644,-500.0,0.00037534,8]
[394838038,1764004319653,-500.0,0.00037534,8]
[394838039,1764004319663,-339.96015206,0.00037534,8]
[394838040,1764004319672,-500.0,0.00037534,8]
[394838041,1764004319681,-562.21,0.00037534,8]
[394838042,1764004319693,-500.0,0.00037534,8]
[394838043,1764004319702,-500.0,0.00037534,8]
[394838044,1764004319712,-641.26901342,0.00037534,8]
[394838045,1764004319722,-500.0,0.00037534,8]
[394838046,1764004319731,-500.0,0.00037534,8]
[394838047,1764004319742,-500.0,0.00037534,8]
[394838048,1764004319751,-500.0,0.00037534,8]
[394838049,1764004319760,-500.0,0.00037534,8]
[394838050,1764004319769,-500.0,0.00037534,8]
[394838051,1764004319778,-500.0,0.00037534,8]
[394838052,1764004319788,-500.0,0.00037534,8]
[394838053,1764004319797,-500.0,0.00037534,8]
[394838054,1764004319807,-403.85705651,0.00037534,8]
[394838055,1764004319816,-500.0,0.00037534,8]
[394838056,1764004319826,-500.0,0.00037534,8]
[394838057,1764004319834,-500.0,0.00037534,8]
[394838058,1764004319843,-494.80136947,0.00037534,8]
[394838059,1764004319853,-216.10375397,0.00037534,8]
[394838060,1764004319863,-651.15,0.00037534,8]
[394838061,1764004319872,-500.0,0.00037534,8]
[394838062,1764004319882,-1000.0,0.00037534,120]
[394838063,1764004319891,-500.0,0.00037534,8]
[394838064,1764004319901,-500.0,0.00037534,8]
[394838065,1764004319911,-500.0,0.00037534,8]
[394838066,1764004319920,-500.0,0.00037534,8]
[394838067,1764004319929,-500.0,0.00037534,8]
[394838068,1764004319940,-500.0,0.00037534,8]
[394838069,1764004319950,-500.0,0.00037534,8]
[394838070,1764004319959,-563.57,0.00037534,8]
[394838071,1764004319968,-500.0,0.00037534,8]
[394838072,1764004319978,-500.0,0.00037534,8]
[394838073,1764004319988,-500.0,0.00037534,8]
[394838074,1764004319997,-576.19,0.00037534,8]
[394838075,1764004320006,-500.0,0.00037534,8]
[394838076,1764004320015,-500.0,0.00037534,8]
[394838077,1764004320025,-500.0,0.00037534,8]
[394838078,1764004320034,-500.0,0.00037534,8]
[394838079,1764004320044,-500.0,0.00037534,8]
[394838080,1764004320052,-500.0,0.00037534,8]
[394838081,1764004320062,-500.0,0.00037534,8]
[394838082,1764004320071,-500.0,0.00037534,8]
[394838083,1764004320080,-531.48587251,0.00037534,8]
[394838084,1764004320089,-500.0,0.00037534,8]
[394838085,1764004320098,-500.0,0.00037534,8]
[394838086,1764004320107,-500.0,0.00037534,8]
[394838087,1764004320116,-500.0,0.00037534,8]
[394838088,1764004320125,-500.0,0.00037534,8]
[394838089,1764004320134,-500.0,0.00037534,8]
[394838090,1764004320144,-170.35628286,0.00037534,8]
[394838091,1764004320153,-290.91232674,0.00037534,8]
[394838092,1764004320163,-610.44,0.00037534,8]
[394838093,1764004320172,-515.9,0.00037534,8]
[394838094,1764004320182,-500.0,0.00037534,8]
[394838095,1764004320192,-500.0,0.00037534,8]
[394838096,1764004320201,-500.0,0.00037534,8]
[394838097,1764004320210,-500.0,0.00037534,8]
[394838098,1764004320220,-500.0,0.00037534,8]
[394838099,1764004320229,-572.26,0.00037534,8]
[394838100,1764004320239,-500.0,0.00037534,8]
[394838101,1764004320248,-500.0,0.00037534,8]
[394838102,1764004320257,-500.0,0.00037534,8]
[394838103,1764004320267,-508.1,0.00037534,8]
[394838104,1764004320276,-611.3,0.00037534,8]
[394838105,1764004320286,-500.0,0.00037534,8]
[394838106,1764004320295,-613.89,0.00037534,8]
[394838107,1764004320304,-500.0,0.00037534,8]
[394838108,1764004320314,-500.0,0.00037534,8]
[394838109,1764004320323,-500.0,0.00037534,8]
[394838110,1764004320332,-500.0,0.00037534,8]
[394838111,1764004320342,-500.0,0.00037534,8]
[394838112,1764004320351,-500.0,0.00037534,8]
[394838113,1764004320359,-745.01,0.00037534,8]
[394838114,1764004320369,-306.39944399,0.00037534,8]
[394838115,1764004320378,-500.0,0.00037534,8]
[394838116,1764004320387,-299.75681991,0.00037534,8]
[394838117,1764004320396,-500.0,0.00037534,8]
[394838118,1764004320405,-500.0,0.00037534,8]
[394838119,1764004320414,-500.0,0.00037534,8]
[394838120,1764004320423,-500.0,0.00037534,8]
[394838121,1764004320433,-500.0,0.00037534,8]
[394838122,1764004320444,-500.0,0.00037534,8]
[394838123,1764004320453,-500.0,0.00037534,8]
[394838124,1764004320462,-500.0,0.00037534,8]
[394838125,1764004320471,-500.0,0.00037534,8]
[394838126,1764004320480,-854.99,0.00037534,8]
[394838127,1764004320488,-500.0,0.00037534,8]
[394838128,1764004320498,-500.0,0.00037534,8]
[394838129,1764004320507,-500.0,0.00037534,8]
[394838130,1764004320515,-500.0,0.00037534,8]
[394838131,1764004320525,-500.0,0.00037534,8]
[394838132,1764004320536,-500.0,0.00037534,8]
[394838133,1764004320545,-500.0,0.00037534,8]
[394838134,1764004320555,-500.0,0.00037534,8]
[394838135,1764004320563,-199.3107241,0.00037534,8]
[394838136,1764004320573,-422.64393294,0.00037534,8]
[394838137,1764004320582,-500.0,0.00037534,8]
[394838138,1764004320592,-532.39,0.00037534,8]
[394838139,1764004320600,-500.0,0.00037534,8]
[394838140,1764004320610,-548.21,0.00037534,8]
[394838141,1764004320620,-500.0,0.00037534,8]
[394838142,1764004320629,-500.0,0.00037534,8]
[394838143,1764004320638,-500.0,0.00037534,8]
[394838144,1764004320647,-500.0,0.00037534,8]
[394838145,1764004320656,-500.0,0.00037534,8]
[394838146,1764004320665,-500.0,0.00037534,8]
[394838147,1764004320674,-388.32227693,0.00037534,8]
[394838148,1764004320683,-369.48654981,0.00037534,8]
[394838149,1764004320694,-500.0,0.00037534,8]
[394838150,1764004320703,-212.8539476,0.00037534,8]
[394838151,1764004320712,-500.0,0.00037534,8]
[394838152,1764004320722,-500.0,0.00037534,8]
[394838153,1764004320731,-166.15977361,0.00037534,8]
[394838154,1764004320740,-500.0,0.00037534,8]
[394838155,1764004320749,-500.0,0.00037534,8]
[394838156,1764004320758,-500.0,0.00037534,8]
[394838157,1764004320767,-540.71412125,0.00037534,8]
[394838158,1764004320776,-500.0,0.00037534,8]
[394838159,1764004320785,-1041.72,0.00037534,8]
[394838160,1764004320794,-506.37307044,0.00037534,8]
[394838161,1764004320804,-500.0,0.00037534,8]
[394838162,1764004320814,-500.0,0.00037534,8]
[394838163,1764004320823,-500.0,0.00037534,8]
[394838164,1764004320833,-500.0,0.00037534,8]
[394838165,1764004320842,-500.0,0.00037534,8]
[394838166,1764004320852,-500.0,0.00037534,8]
[394838167,1764004320862,-500.0,0.00037534,8]
[394838168,1764004320871,-158.94641058,0.00037534,8]
[394838169,1764004320881,-500.0,0.00037534,8]
[394838170,1764004320890,-500.0,0.00037534,8]
[394838171,1764004320900,-500.0,0.00037534,8]
[394838172,1764004320909,-500.0,0.00037534,8]
[394838173,1764004320919,-500.0,0.00037534,8]
[394838174,1764004320928,-500.0,0.00037534,8]
[394838175,1764004320938,-1368.18,0.00037534,8]
[394838176,1764004320948,-500.0,0.00037534,8]
[394838177,1764004320958,-500.0,0.00037534,8]
[394838178,1764004320967,-500.0,0.00037534,8]
[394838179,1764004320976,-1000.0,0.00037534,30]
[394838180,1764004320986,-439.37029809,0.00037534,8]
[394838181,1764004320996,-500.0,0.00037534,8]
[394838182,1764004321005,-500.0,0.00037534,8]
[394838183,1764004321015,-500.0,0.00037534,8]
[394838184,1764004321024,-592.6317843,0.00037534,8]
[394838185,1764004321033,-218.3693587,0.00037534,8]
[394838186,1764004321043,-500.0,0.00037534,8]
[394838187,1764004321053,-500.0,0.00037534,8]
[394838188,1764004321062,-500.0,0.00037534,8]
[394838189,1764004321073,-500.0,0.00037534,8]
[394838190,1764004321084,-780.9,0.00037534,8]
[394838191,1764004321093,-500.0,0.00037534,8]
[394838192,1764004321103,-439.00708877,0.00037534,8]
[394838193,1764004321112,-232.2392371,0.00037534,8]
[394838194,1764004321122,-58883.02,0.00037534,5]
[394838195,1764004321131,-500.0,0.00037534,120]
[394838196,1764004321140,-2084.41,0.00037534,8]
[394838197,1764004321149,-1628.09,0.00037534,8]
[394838198,1764004321159,-500.0,0.00037534,8]
[394838199,1764004321168,-500.0,0.00037534,8]
[394838200,1764004321177,-500.0,0.00037534,8]
[394838201,1764004321187,-5963.43,0.00037534,8]
[394838202,1764004321196,-238.96458966,0.00037534,8]
[394838203,1764004321206,-517.99533291,0.00037534,8]
[394838204,1764004321215,-500.0,0.00037534,8]
[394838205,1764004321224,-500.0,0.00037534,8]
[394838206,1764004321234,-256.1845982,0.00037534,8]
[394838207,1764004321243,-1883.34,0.00037534,8]
[394838208,1764004321252,-690.57,0.00037534,8]
[394838209,1764004321262,-500.0,0.00037534,8]
[394838210,1764004321272,-2060.11,0.00037534,8]
[394838211,1764004321283,-500.0,0.00037534,8]
[394838212,1764004321293,-500.0,0.00037534,8]
[394838213,1764004321303,-223.0,0.00037534,7]
[394838214,1764004321314,-500.0,0.00037534,8]
[394838215,1764004321324,-4395.08,0.00037534,8]
[394838216,1764004321333,-525.11,0.00037534,8]
[394838217,1764004321343,-500.0,0.00037534,8]
[394838218,1764004321355,-361.10747187,0.00037534,8]
[394838219,1764004321365,-500.0,0.00037534,8]
[394838220,1764004321375,-1003.05,0.00037534,8]
[394838221,1764004321387,-500.0,0.00037534,8]
[394838222,1764004321397,-500.0,0.00037534,8]
[394838223,1764004321408,-589.19,0.00037534,8]
[394838224,1764004321417,-500.0,0.00037534,8]
[394838225,1764004321428,-415.43,0.00037534,8]
[394838226,1764004321437,-1145.57,0.00037534,8]
[394838227,1764004321447,-793.5,0.00037534,8]
[394838228,1764004321457,-500.0,0.00037534,8]
[394838229,1764004321468,-500.0,0.00037534,8]
[394838230,1764004321479,-500.0,0.00037534,2]
[394838231,1764004321489,-500.0,0.00037534,8]
[394838232,1764004321500,-7870.47,0.00037534,8]
[394838233,1764004321510,-500.0,0.00037534,8]
[394838234,1764004321519,-573.44,0.00037534,8]
[394838235,1764004321528,-4868.19,0.00037534,2]
[394838236,1764004321544,-777.06,0.00037534,8]
[394838237,1764004321553,-500.0,0.00037534,8]
[394838238,1764004321566,-500.0,0.00037534,8]
[394838239,1764004321575,-500.0,0.00037534,8]
[394838240,1764004321586,-500.0,0.00037534,8]
[394838241,1764004321596,-500.0,0.00037534,2]
[394838242,1764004321607,-500.0,0.00037534,8]
[394838243,1764004321617,-500.0,0.00037534,8]
[394838244,1764004321627,-500.0,0.00037534,8]
[394838245,1764004321636,-500.0,0.00037534,8]
[394838246,1764004321646,-552.24294509,0.00037534,8]
[394838247,1764004321655,-500.0,0.00037534,8]
[394838248,1764004321664,-500.0,0.00037534,8]
[394838249,1764004321673,-511.5,0.00037534,8]
[394838250,1764004321683,-500.0,0.00037534,8]
[394838251,1764004321695,-500.0,0.00037534,8]
[394838252,1764004321704,-671.7,0.00037534,8]
[394838253,1764004321714,-502.35,0.00037534,8]
[394838254,1764004321723,-500.0,0.00037534,8]
[394838255,1764004321732,-500.0,0.00037534,8]
[394838256,1764004321742,-500.0,0.00037534,8]
[394838257,1764004321751,-500.0,0.00037534,8]
[394838258,1764004321761,-500.0,0.00037534,8]
[394838259,1764004321770,-5746.28,0.00037534,8]
[394838260,1764004321780,-4285.40722849,0.0003759,2]
[394838261,1764004321789,-496.62764038,0.00037808,8]
[394838262,1764004321798,-500.0,0.00037808,8]
[394838263,1764004321808,-500.0,0.00037808,8]
[394838264,1764004321817,-234.21,0.00037808,8]
[394838265,1764004321827,-500.0,0.00037808,8]
[394838266,1764004321837,-505.89,0.00037808,8]
[394838267,1764004321847,-500.0,0.00037808,8]
[394838268,1764004321856,-500.0,0.00037808,8]
[394838269,1764004322025,-572.85,0.00037808,8]
[394838270,1764004322052,-500.0,0.00037808,8]
[394838271,1764004322061,-500.0,0.00037808,8]
[394838272,1764004322071,-505.5160964,0.00037808,8]
[394838273,1764004322080,-237.69270008,0.00037808,8]
[394838274,1764004322089,-439.51296116,0.00037808,8]
[394838275,1764004322098,-500.0,0.00037808,8]
[394838276,1764004322107,-562.21,0.00037808,8]
[394838277,1764004322117,-500.0,0.00037808,8]
[394838278,1764004322126,-500.0,0.00037808,8]
[394838279,1764004322135,-462.21642034,0.00037808,8]
[394838280,1764004322144,-500.0,0.00037808,8]
[394838281,1764004322154,-269.6,0.00037808,8]
[394838282,1764004322163,-500.0,0.00037808,8]
[394838283,1764004322172,-500.0,0.00037808,8]
[394838284,1764004322181,-540.14,0.00037808,8]
[394838285,1764004322191,-500.0,0.00037808,8]
[394838286,1764004322200,-162.02204574,0.00037808,8]
[394838287,1764004322209,-409.3408691,0.00037808,8]
[394838288,1764004322219,-425.31,0.00037808,8]
[394838289,1764004322228,-500.0,0.00037808,8]
[394838290,1764004322237,-500.0,0.00037808,8]
[394838291,1764004322247,-651.15,0.00037808,8]
[394838292,1764004322258,-500.0,0.00037808,8]
[394838293,1764004322267,-1000.0,0.00037808,120]
[394838294,1764004322276,-500.0,0.00037808,8]
[394838295,1764004322286,-500.0,0.00037808,8]
[394838296,1764004322295,-212.58319448,0.00037808,8]
[394838297,1764004322305,-500.0,0.00037808,8]
[394838298,1764004322314,-500.0,0.00037808,8]
[394838299,1764004322323,-500.0,0.00037808,8]
[394838300,1764004322334,-492.33533386,0.00037808,8]
[394838301,1764004322344,-549.41,0.00037808,8]
[394838302,1764004322353,-500.0,0.00037808,8]
[394838303,1764004322363,-500.0,0.00037808,8]
[394838304,1764004322372,-576.19,0.00037808,8]
[394838305,1764004322382,-500.0,0.00037808,8]
[394838306,1764004322391,-500.0,0.00037808,8]
[394838307,1764004322401,-500.0,0.00037808,8]
[394838308,1764004322410,-500.0,0.00037808,8]
[394838309,1764004322420,-500.0,0.00037808,8]
[394838310,1764004322429,-500.0,0.00037808,8]
[394838311,1764004322438,-500.0,0.00037808,8]
[394838312,1764004322448,-500.0,0.00037808,8]
[394838313,1764004322458,-500.0,0.00037808,8]
[394838314,1764004322467,-184.78,0.00037808,8]
[394838315,1764004322476,-500.0,0.00037808,8]
[394838316,1764004322486,-500.0,0.00037808,8]
[394838317,1764004322495,-500.0,0.00037808,8]
[394838318,1764004322504,-500.0,0.00037808,8]
[394838319,1764004322514,-515.9,0.00037808,8]
[394838320,1764004322524,-500.0,0.00037808,8]
[394838321,1764004322539,-500.0,0.00037808,8]
[394838322,1764004322554,-500.0,0.00037808,8]
[394838323,1764004322564,-500.0,0.00037808,8]
[394838324,1764004322574,-500.0,0.00037808,8]
[394838325,1764004322585,-572.26,0.00037808,8]
[394838326,1764004322595,-500.0,0.00037808,8]
[394838327,1764004322604,-500.0,0.00037808,8]
[394838328,1764004322616,-500.0,0.00037808,8]
[394838329,1764004322626,-508.1,0.00037808,8]
[394838330,1764004322636,-611.3,0.00037808,8]
[394838331,1764004322645,-500.0,0.00037808,8]
[394838332,1764004322655,-613.89,0.00037808,8]
[394838333,1764004322664,-500.0,0.00037808,8]
[394838334,1764004322674,-500.0,0.00037808,8]
[394838335,1764004322683,-500.0,0.00037808,8]
[394838336,1764004322694,-570.42168135,0.00037808,8]
[394838337,1764004322704,-500.0,0.00037808,8]
[394838338,1764004322714,-500.0,0.00037808,8]
[394838339,1764004322723,-745.01,0.00037808,8]
[394838340,1764004322732,-500.0,0.00037808,8]
[394838341,1764004322742,-500.0,0.00037808,8]
[394838342,1764004322751,-310.29291592,0.00037808,8]
[394838343,1764004322760,-500.0,0.00037808,8]
[394838344,1764004322770,-500.0,0.00037808,8]
[394838345,1764004322780,-500.0,0.00037808,8]
[394838346,1764004322789,-500.0,0.00037808,8]
[394838347,1764004322798,-500.0,0.00037808,8]
[394838348,1764004322808,-500.0,0.00037808,8]
[394838349,1764004322817,-500.0,0.00037808,8]
[394838350,1764004322826,-854.99,0.00037808,8]
[394838351,1764004322836,-500.0,0.00037808,8]
[394838352,1764004322845,-500.0,0.00037808,8]
[394838353,1764004322854,-472.18,0.00037808,8]
[394838354,1764004322864,-547.97,0.00037808,8]
[394838355,1764004322873,-500.0,0.00037808,8]
[394838356,1764004322883,-500.0,0.00037808,8]
[394838357,1764004322893,-500.0,0.00037808,8]
[394838358,1764004322903,-195.91,0.00037808,8]
[394838359,1764004322912,-332.88,0.00037808,8]
[394838360,1764004322922,-532.39,0.00037808,8]
[394838361,1764004322932,-500.0,0.00037808,8]
[394838362,1764004322943,-548.21,0.00037808,8]
[394838363,1764004322951,-500.0,0.00037808,8]
[394838364,1764004322961,-500.0,0.00037808,8]
[394838365,1764004322970,-181.46,0.00037808,8]
[394838366,1764004322980,-500.0,0.00037808,8]
[394838367,1764004322989,-500.0,0.00037808,8]
[394838368,1764004322999,-500.0,0.00037808,8]
[394838369,1764004323008,-600.53,0.00037808,8]
[394838370,1764004323018,-500.0,0.00037808,8]
[394838371,1764004323028,-551.69,0.00037808,8]
[394838372,1764004323037,-500.0,0.00037808,8]
[394838373,1764004323047,-500.0,0.00037808,8]
[394838374,1764004323057,-500.0,0.00037808,8]
[394838375,1764004323067,-500.0,0.00037808,8]
[394838376,1764004323077,-1041.72,0.00037808,8]
[394838377,1764004323086,-353.7180178,0.00037808,8]
[394838378,1764004323096,-500.0,0.00037808,8]
[394838379,1764004323106,-500.0,0.00037808,8]
[394838380,1764004323115,-500.0,0.00037808,8]
[394838381,1764004323125,-500.0,0.00037808,8]
[394838382,1764004323134,-500.0,0.00037808,8]
[394838383,1764004323144,-500.0,0.00037808,8]
[394838384,1764004323154,-500.0,0.00037808,8]
[394838385,1764004323163,-256.09574951,0.00037808,8]
[394838386,1764004323173,-634.83888142,0.00037808,8]
[394838387,1764004323182,-500.0,0.00037808,8]
[394838388,1764004323193,-500.0,0.00037808,8]
[394838389,1764004323202,-1368.18,0.00037808,8]
[394838390,1764004323211,-500.0,0.00037808,8]
[394838391,1764004323220,-505.33014869,0.00037808,8]
[394838392,1764004323230,-500.0,0.00037808,8]
[394838393,1764004323239,-1000.0,0.00037808,30]
[394838394,1764004323248,-500.0,0.00037808,8]
[394838395,1764004323257,-500.0,0.00037808,8]
[394838396,1764004323268,-500.0,0.00037808,8]
[394838397,1764004323277,-500.0,0.00037808,8]
[394838398,1764004323287,-500.0,0.00037808,8]
[394838399,1764004323296,-500.0,0.00037808,8]
[394838400,1764004323306,-500.0,0.00037808,8]
[394838401,1764004323315,-780.9,0.00037808,8]
[394838402,1764004323324,-500.0,0.00037808,8]
[394838403,1764004323333,-58883.02,0.00037808,5]
[394838404,1764004323343,-500.0,0.00037808,120]
[394838405,1764004323352,-2084.41,0.00037808,8]
[394838406,1764004323362,-1628.09,0.00037808,8]
[394838407,1764004323372,-500.0,0.00037808,8]
[394838408,1764004323382,-500.0,0.00037808,8]
[394838409,1764004323391,-500.0,0.00037808,8]
[394838410,1764004323400,-5963.43,0.00037808,8]
[394838411,1764004323410,-500.0,0.00037808,8]
[394838412,1764004323419,-500.0,0.00037808,8]
[394838413,1764004323428,-1883.34,0.00037808,8]
[394838414,1764004323438,-690.57,0.00037808,8]
[394838415,1764004323449,-500.0,0.00037808,8]
[394838416,1764004323458,-2060.11,0.00037808,8]
[394838417,1764004323468,-500.0,0.00037808,8]
[394838418,1764004323477,-500.0,0.00037808,8]
[394838419,1764004323487,-179.81484794,0.00037808,8]
[394838420,1764004323496,-4395.08,0.00037808,8]
[394838421,1764004323505,-525.11,0.00037808,8]
[394838422,1764004323515,-500.0,0.00037808,8]
[394838423,1764004323524,-500.0,0.00037808,8]
[394838424,1764004323537,-1003.05,0.00037808,8]
[394838425,1764004323547,-500.0,0.00037808,8]
[394838426,1764004323557,-500.0,0.00037808,8]
[394838427,1764004323567,-589.19,0.00037808,8]
[394838428,1764004323578,-500.0,0.00037808,8]
[394838429,1764004323588,-1145.57,0.00037808,8]
[394838430,1764004323598,-793.5,0.00037808,8]
[394838431,1764004323607,-500.0,0.00037808,8]
[394838432,1764004323618,-500.0,0.00037808,8]
[394838433,1764004323627,-500.0,0.00037808,2]
[394838434,1764004323637,-500.0,0.00037808,8]
[394838435,1764004323647,-7870.47,0.00037808,8]
[394838436,1764004323656,-500.0,0.00037808,8]
[394838437,1764004323665,-573.44,0.00037808,8]
[394838438,1764004323674,-4868.19,0.00037808,2]
[394838439,1764004323683,-777.06,0.00037808,8]
[394838440,1764004323695,-500.0,0.00037808,8]
[394838441,1764004323704,-500.0,0.00037808,8]
[394838442,1764004323714,-500.0,0.00037808,8]
[394838443,1764004323723,-500.0,0.00037808,8]
[394838444,1764004323732,-500.0,0.00037808,2]
[394838445,1764004323742,-500.0,0.00037808,8]
[394838446,1764004323751,-500.0,0.00037808,8]
[394838447,1764004323760,-500.0,0.00037808,8]
[394838448,1764004323770,-500.0,0.00037808,8]
[394838449,1764004323779,-500.0,0.00037808,8]
[394838450,1764004323789,-500.0,0.00037808,8]
[394838451,1764004323799,-511.5,0.00037808,8]
[394838452,1764004323808,-500.0,0.00037808,8]
[394838453,1764004323818,-500.0,0.00037808,8]
[394838454,1764004323828,-671.7,0.00037808,8]
[394838455,1764004323838,-502.35,0.00037808,8]
[394838456,1764004323847,-500.0,0.00037808,8]
[394838457,1764004323856,-500.0,0.00037808,8]
[394838458,1764004323866,-500.0,0.00037808,8]
[394838459,1764004323878,-500.0,0.00037808,8]
[394838460,1764004323888,-500.0,0.00037808,8]
[394838461,1764004323897,-5746.28,0.00037808,8]
[394838462,1764004323907,-199.83625459,0.0003788,2]
[394838463,1764004323916,-500.0,0.00037959,30]
[394838464,1764004323926,-507.05055134,0.00037959,30]
[394838465,1764004323936,-684.57085447,0.00037959,30]
[394838466,1764004323946,-588.39720235,0.00037959,30]
[394838467,1764004323956,-511.20249531,0.00037959,30]
[394838468,1764004323966,-701.92532175,0.00037959,30]
[394838469,1764004323975,-250.0,0.00037973,5]
[394838470,1764004323985,-151.0,0.00037997,14]
[394838471,1764004323995,-2000.0,0.00038,2]
[394838472,1764004324004,-551253.99737622,0.00038,2]
[394838473,1764004324014,-2000.0,0.00038,2]
[394838474,1764004324023,-818.41,0.00038,2]
[394838475,1764004324033,-300.0,0.00038,120]
[394838476,1764004324042,-500.0,0.00038,30]
[394838477,1764004324051,-158.96394041,0.00038,120]
[394838478,1764004324060,-10079.8402335,0.00038,14]
[394838479,1764004324069,-1052.9993959,0.00038,120]
[394838480,1764004324078,-500.0,0.00038082,8]
[394838481,1764004324087,-500.0,0.00038082,8]
[394838482,1764004324096,-500.0,0.00038082,8]
[394838483,1764004324105,-505.89,0.00038082,8]
[394838484,1764004324115,-500.0,0.00038082,8]
[394838485,1764004324124,-382.03,0.00038082,8]
[394838486,1764004324133,-572.85,0.00038082,8]
[394838487,1764004324143,-500.0,0.00038082,8]
[394838488,1764004324152,-500.0,0.00038082,8]
[394838489,1764004324161,-562.21,0.00038082,8]
[394838490,1764004324170,-500.0,0.00038082,8]
[394838491,1764004324180,-500.0,0.00038082,8]
[394838492,1764004324189,-500.0,0.00038082,8]
[394838493,1764004324199,-500.0,0.00038082,8]
[394838494,1764004324208,-500.0,0.00038082,8]
[394838495,1764004324218,-500.0,0.00038082,8]
[394838496,1764004324227,-500.0,0.00038082,8]
[394838497,1764004324237,-500.0,0.00038082,8]
[394838498,1764004324246,-651.15,0.00038082,8]
[394838499,1764004324255,-500.0,0.00038082,8]
[394838500,1764004324273,-1000.0,0.00038082,120]
[394838501,1764004324285,-500.0,0.00038082,8]
[394838502,1764004324295,-500.0,0.00038082,8]
[394838503,1764004324304,-500.0,0.00038082,8]
[394838504,1764004324314,-515.52,0.00038082,8]
[394838505,1764004324325,-500.0,0.00038082,8]
[394838506,1764004324335,-500.0,0.00038082,8]
[394838507,1764004324344,-500.0,0.00038082,8]
[394838508,1764004324354,-576.19,0.00038082,8]
[394838509,1764004324363,-500.0,0.00038082,8]
[394838510,1764004324373,-500.0,0.00038082,8]
[394838511,1764004324382,-500.0,0.00038082,8]
[394838512,1764004324392,-500.0,0.00038082,8]
[394838513,1764004324510,-500.0,0.00038082,8]